Cogmind - Beta 13 @@@ ROGUE MODE // 2024.04.02 @ 19:42:34 Player: Ralos Result: Self-destructed Performance ------------- Evolutions (5) 2500 Regions Visited (7) 1400 Robots Destroyed (120) 600 Value Destroyed (4452) 4452 Prototype IDs (9) 180 Alien Tech Used (0) 0 Bonus (572) 572 TOTAL SCORE: 9704 Bonus ------- High Alert Combat Kills 506 Follower Combat Kills 201 Friendly Fire -135 Cogmind --------- Core Integrity 984/1000 Matter 5/450 Energy 150/150 System Corruption 0% Temperature Cool (0) Movement Walking (220) Ox1 Location -5/Factory Parts ------- > --- POWER (2) -------- Micro Nuclear Core > --- PROPULSION (6) --- Carbon-fiber Leg Carbon-fiber Leg Light Armored Exoskeleton Light Armored Exoskeleton > --- UTILITY (5) ------ Huge Storage Unit Large Matter Pod Enhanced Optical Array Terrain Scanner Improved Light Armor Plating > --- WEAPON (4) ------- (None) > --- INVENTORY (25) --- Fusion Compressor Improved Medium Treads Advanced Terrain Scanner Component Analysis Suite Improved Field Recycling Unit (2) Variable Charge Gun Heavy Proton Cannon Heavy Machine Gun Mini Grenade Launcher Improved Plasma Cutter Great Maul Great Maul Heavy Pick Heavy Pick Peak State ------------ > --- POWER ------------ Light Nuclear Core Reinforced Deuterium Engine > --- PROPULSION ------- Armored Huge Wheel Armored Huge Wheel > --- UTILITY ---------- Huge Storage Unit Improved Melee Analysis Suite Improved Medium Armor Plating Improved Shield Generator Improved Field Recycling Unit > --- WEAPON ----------- Shock Rifle Enhanced Autogun Advanced Assault Cannon Powered Hammer > --- INVENTORY -------- Light Nuclear Core Micro Nuclear Core Light Armored Exoskeleton Light Armored Exoskeleton Huge Storage Unit Small Matter Pod Large Matter Pod Terrain Scanner Light Armor Plating Improved Light Armor Plating Shock Absorption System Mini Grenade Launcher [Rating: 58] Favorites ----------- Power Micro Nuclear Core Engine Improved Ion Engine Power Core Micro Nuclear Core Propulsion Light Treads Treads Light Treads Leg Aluminum Leg Wheel Armored Huge Wheel Utility Huge Storage Unit Device Force Booster Storage Huge Storage Unit Processor Melee Analysis Suite Protection Hardened Light Armor Plating Weapon Improved Assault Rifle Energy Gun Beam Rifle Energy Cannon Light EM Pulse Cannon Ballistic Gun Improved Assault Rifle Ballistic Cannon Advanced Assault Cannon Launcher Mini Grenade Launcher Impact Weapon Powered Hammer Slashing Weapon Katana Build | -11 -10 -9 -9 -8 -7 -6 -5 ------- Run | Yrd Mat Mat Sto Mat Fac Fac Fac Slots Evolved 10 | . . 2 . 2 2 2 2 Power 1 | . . . . . . 1 . Propulsion 4 | . . 2 . . . . 2 Utility 3 | . . . . 1 1 1 . Weapon 2 | . . . . 1 1 . . Parts Attached 124 | 6 9 8 26 18 33 20 4 Power 20 | 1 . 1 7 2 6 3 . Engine 13 | 1 . 1 7 1 3 . . Core 7 | . . . . 1 3 3 . Reactor . | . . . . . . . . Propulsion 28 | 2 2 3 6 5 6 2 2 Treads 17 | 2 2 2 6 4 1 . . Leg 7 | . . 1 . 1 1 2 2 Wheel 4 | . . . . . 4 . . Hover . | . . . . . . . . Flight . | . . . . . . . . Utility 37 | 1 2 . 5 4 13 10 2 Device 14 | . . . 2 . 8 3 1 Storage 6 | 1 1 . . . 1 3 . Processor 5 | . . . . 2 2 1 . Hackware . | . . . . . . . . Protection 12 | . 1 . 3 2 2 3 1 Artifact . | . . . . . . . . Weapon 39 | 2 5 4 8 7 8 5 . Energy Gun 11 | 1 3 2 2 . . 3 . Energy Cannon 1 | . . . 1 . . . . Ballistic Gun 13 | 1 1 . 2 5 4 . . Ballistic Cannon 1 | . . . . . 1 . . Launcher 9 | . 1 1 2 1 2 2 . Special Weapon . | . . . . . . . . Impact Weapon 1 | . . . . . 1 . . Slashing Weapon 3 | . . 1 1 1 . . . Piercing Weapon . | . . . . . . . . Special Melee Weapon . | . . . . . . . . Unidentified Prototypes 9 | . . . 6 . 3 . . Corrupted Parts 1 | . . . 1 . . . . System Corruption 9 | . . . 9 . . . . Parts Lost 49 | . . 3 8 7 16 15 . Power 8 | . . 1 1 1 2 3 . Propulsion 16 | . . 1 3 5 5 2 . Utility 10 | . . . 2 . 4 4 . Weapon 15 | . . 1 2 1 5 6 . Highest Loss Streak 9 | . . 2 3 5 4 9 . To Critical Strikes 1 | . . . . . 1 . . Average Slot Usage (%) 88 | . 91 96 98 95 88 68 63 Engine 5 | . 14 9 10 4 2 2 . Core 3 | . . . . 4 4 6 5 Treads 18 | . 27 36 39 28 8 . . Leg 5 | . . 5 4 3 4 6 22 Wheel 3 | . . . . . 6 6 . Device 7 | . . . 1 1 14 7 4 Storage 9 | . 14 11 11 9 7 12 11 Processor 4 | . . . . 12 6 4 5 Protection 3 | . 7 11 8 3 . 2 4 Energy Gun 2 | . 12 11 1 . . 5 . Ballistic Gun 13 | . 13 . 5 17 21 2 . Launcher 2 | . 2 7 4 . . 4 4 Slashing Weapon 5 | . . 3 10 9 6 . . Naked Turns . | . . . . . . . . Heaviest Build 136 | 14 36 38 39 47 127 136 94 Greatest Support 90 | 40 40 80 83 83 60 60 90 Greatest Overweight (x) 11 | 2 3 . . 1 11 2 1 Average Overweight (x) . | . . . . . 1 1 1 Largest Inventory Capacity 25 | 8 15 15 15 15 25 25 25 Average Capacity 19 | 6 12 15 15 15 23 25 25 Most Carried 25 | 5 15 13 15 15 25 16 14 Average Carried 14 | 3 9 12 14 11 16 9 10 Final Capacity 25 | 8 15 15 15 15 25 25 25 Final Carried 17 | 4 14 12 15 11 17 6 14 Class Distribution -------------------- 42% | Mutant 25% | Scavenger-Gunner 14% | Gunner 12% | Scavenger-Mutant 4% | Tank Dominant Class ---------------- Mutant | -10/Materials Mutant | -9/Materials Mutant | -9/Storage Mutant | -8/Materials Scavenger-Gunner | -7/Factory Mutant | -6/Factory Scavenger-Mutant | -5/Factory Resources | -11 -10 -9 -9 -8 -7 -6 -5 ----------- Run | Yrd Mat Mat Sto Mat Fac Fac Fac Matter Collected 2799 | 235 198 83 431 449 1183 220 . Remotely . | . . . . . . . . Salvage Created 3783 | . 333 185 752 500 1379 634 . Parts 239 | . 27 11 58 37 86 20 . Haulers Intercepted 2 | . 1 . . 1 . . . Recyclers Shooed 2 | . . . . . . 2 . Parts Field Recycled 9 | . . . . . . 9 . Retrieved Matter 59 | . . . . . . 59 . Parts Self-Destructed . | . . . . . . . . Prevented . | . . . . . . . . Kills | -11 -10 -9 -9 -8 -7 -6 -5 ------- Run | Yrd Mat Mat Sto Mat Fac Fac Fac Combat Hostiles Destroyed 94 | . 8 5 19 14 30 18 . Melee 5 | . . . 5 . . . . Guns 45 | . 8 3 2 8 21 3 . Cannons 3 | . . . . . 2 1 . AOE 41 | . . 2 12 6 7 14 . Classes Destroyed 14 | . 4 3 2 . 4 1 . Worker 10 | . 2 . 1 . 7 . . Builder 5 | . . . 3 . 1 1 . Tunneler 2 | . . . . . 2 . . Hauler 2 | . 1 . . 1 . . . Operator 3 | . . . . . 2 1 . Watcher 4 | . . 1 2 . 1 . . Swarmer 14 | . 3 . 3 4 4 . . Grunt 49 | . 5 3 7 7 11 16 . Brawler 4 | . . . 1 . 3 . . Duelist 3 | . . 1 1 . 1 . . Protector 1 | . . . . . . 1 . Sentry 16 | . . 1 7 3 4 1 . Hunter 1 | . . . . . 1 . . Programmer 6 | . . . . . 6 . . Best Kill Streak 8 | . 5 4 8 6 6 5 . Combat Bots Only 6 | . 4 4 5 6 4 5 . Max Kills in Single Turn 4 | . 2 2 3 4 3 2 . Gunslinging . | . . . . . . . . Exploded 4 | . . 2 2 4 3 2 . Melee 1 | . . . 1 . . . . Uniques/NPCs Destroyed . | . . . . . . . . Combat | -11 -10 -9 -9 -8 -7 -6 -5 -------- Run | Yrd Mat Mat Sto Mat Fac Fac Fac Hostile Shots Fired 784 | . 29 26 87 127 326 168 21 Missed 215 | . 7 3 19 30 115 35 6 Damage Taken 9378 | . 238 587 1167 1605 2915 2696 170 Core 1409 | . 20 77 112 266 489 429 16 Absorbed by Shields 310 | . . . . . 205 105 . Regen/Repaired (Parts) 120 | . . . 120 . . . . Core Remaining (%) 62 | 100 92 . 52 51 30 49 . Volleys Fired 266 | . 32 16 34 43 100 41 . Largest 3 | . 2 2 1 2 3 3 . Hottest 156 | . 76 112 45 53 101 156 . Shots Fired 527 | . 64 22 41 80 250 70 . Gun 449 | . 64 18 26 78 226 37 . Cannon 26 | . . . . . 16 10 . Launcher 52 | . . 4 15 2 8 23 . Special . | . . . . . . . . Kinetic 384 | . 32 . 15 78 242 17 . Thermal 67 | . 28 15 . . . 24 . Explosive 52 | . . 4 15 2 8 23 . Electromagnetic 24 | . 4 3 11 . . 6 . Robot Hit Streak 27 | . 8 9 11 24 27 12 . Robot Miss Streak 9 | . 5 2 4 2 9 7 . Penetration Max . | . . . . . . . . Secondary Targets 3 | . 2 . . 1 . . . Max Gunslinging Chain 1 | . 1 . . 1 . . . Shots Hit Robots 385 | . 36 16 43 62 186 42 . Core Hits 258 | . 17 10 37 32 106 56 . Critical Kills 1 | . . . . . 1 . . Critical Parts Destroyed 1 | . . . . . 1 . . Critical Strikes 12 | . 3 . 5 . 3 1 . Burn 4 | . 3 . . . . 1 . Destroy 2 | . . . . . 2 . . Blast 1 | . . . . . 1 . . Sever 5 | . . . 5 . . . . Melee Attacks 66 | . . 1 22 . 43 . . Impact 1 | . . . . . 1 . . Slashing 65 | . . 1 22 . 42 . . Piercing . | . . . . . . . . Sneak Attacks 7 | . . . 1 . 6 . . Combat Hostiles . | . . . . . . . . Follow-up Attacks . | . . . . . . . . Damage Inflicted 11623 | . 538 435 1676 1268 4669 3037 . Guns 5325 | . 536 218 293 931 2927 420 . Cannons 397 | . . . . . 294 103 . Explosions 4958 | . . 217 968 337 922 2514 . Melee 941 | . . . 415 . 526 . . Ramming 2 | . 2 . . . . . . Kinetic 4721 | . 242 . 161 931 3221 166 . Thermal 909 | . 239 298 . . . 372 . Explosive 4771 | . . 108 968 337 922 2436 . Electromagnetic 279 | . 55 29 132 . . 63 . Impact . | . . . . . . . . Slashing 941 | . . . 415 . 526 . . Piercing . | . . . . . . . . Highest Corruption 9 | . . . 9 . 9 . . Average Corruption 8 | . . . 9 . 6 . . Corruption Purged . | . . . . . . . . Corruption Blocked . | . . . . . . . . Effects 45 | . . . 36 . 9 . . Message Errors 9 | . . . 6 . 3 . . Matter Fused 8 | . . . 6 . 2 . . Heat Flow Errors 5 | . . . 4 . 1 . . Energy Discharges 6 | . . . 4 . 2 . . Parts Fused 1 | . . . 1 . . . . Data Loss (minor) 8 | . . . 7 . 1 . . Misfires 7 | . . . 7 . . . . Alerts 1 | . . . 1 . . . . Overload Shots . | . . . . . . . . Overflow Damage 376 | . . 73 36 . 178 89 . Projectiles . | . . . . . . . . Explosions 262 | . . 73 36 . 64 89 . Melee 114 | . . . . . 114 . . Knockbacks 3 | . . . . . 3 . . Impact . | . . . . . . . . Kinetic 3 | . . . . . 3 . . Secondary . | . . . . . . . . Self-Inflicted Damage 1160 | . . 183 202 . 252 523 . Shots 30 | . . 4 6 . 4 16 . Rammed 1 | . 1 . . . . . . Targets Rammed 1 | . 1 . . . . . . Kicked . | . . . . . . . . Crushed . | . . . . . . . . Highest Temperature 577 | . 361 378 200 62 322 577 . Average Temperature 148 | . 141 161 76 17 109 230 . Received Heat Transfer 3161 | . 99 75 399 783 700 1105 . Effects 21 | . 2 . . . 1 18 . Shutdowns 6 | . . . . . . 6 . Energy Bleed 3 | . . . . . 1 2 . Interference 6 | . . . . . . 6 . Short Circuit 1 | . . . . . . 1 . Damage (minor) 2 | . 2 . . . . . . Damage (major) 3 | . . . . . . 3 . Siege Activations . | . . . . . . . . Robots Corrupted . | . . . . . . . . Combat Hostiles . | . . . . . . . . Parts Fried 1 | . . . 1 . . . . Impact Corruptions . | . . . . . . . . Robots Melted . | . . . . . . . . Combat Hostiles . | . . . . . . . . Parts Melted 5 | . 4 1 . . . . . Heat Transferred 2098 | . 851 531 . . . 716 . Parts Sabotaged . | . . . . . . . . Parts Stolen . | . . . . . . . . Parts Stripped . | . . . . . . . . Power Chain Reactions 1 | . . . . . . 1 . Alert | -11 -10 -9 -9 -8 -7 -6 -5 ------- Run | Yrd Mat Mat Sto Mat Fac Fac Fac Peak Influence 834 | . 217 235 834 636 695 739 330 Initial 340 | . . 28 98 304 198 340 305 Average 307 | . 107 105 511 505 208 534 301 Maximum Alert Level 3 | . 1 1 3 2 2 3 1 Low Security (%) 42 | 100 84 86 17 . 60 . 4 Level 1 28 | . 15 13 11 15 34 18 95 Level 2 23 | . . . 45 84 5 74 . Level 3 5 | . . . 24 . . 6 . Level 4 . | . . . . . . . . Level 5 . | . . . . . . . . High Security . | . . . . . . . . Max Security . | . . . . . . . . Squads Dispatched 28 | . 1 1 7 2 12 5 . Investigation 6 | . 1 1 2 1 1 . . Extermination 6 | . . . . . 6 . . Reinforcement 9 | . . . 1 . 5 3 . Assault 3 | . . . 1 1 . 1 . Garrison 4 | . . . 3 . . 1 . Intercept . | . . . . . . . . Searches Triggered . | . . . . . . . . Construction Impeded . | . . . . . . . . Haulers Reinforced . | . . . . . . . . Active Scanning Responses . | . . . . . . . . Cargo Convoy Interrupts . | . . . . . . . . Stealth | -11 -10 -9 -9 -8 -7 -6 -5 --------- Run | Yrd Mat Mat Sto Mat Fac Fac Fac Distress Signals 4 | . 1 . 2 . 1 . . Communications Jammed . | . . . . . . . . Distress Signals . | . . . . . . . . Times Spotted 131 | . 11 6 31 18 41 22 2 Peak Tracking Total 8 | . 5 4 6 6 4 8 1 Tactical Retreats 6 | . . . 1 1 4 . . Traps | -11 -10 -9 -9 -8 -7 -6 -5 ------- Run | Yrd Mat Mat Sto Mat Fac Fac Fac Traps Triggered 4 | . 2 . . 1 1 . . Indirectly . | . . . . . . . . Trap Hack Attempts . | . . . . . . . . Triggered . | . . . . . . . . Disarmed . | . . . . . . . . Reprogrammed . | . . . . . . . . Reused . | . . . . . . . . Traps Extracted . | . . . . . . . . Installed . | . . . . . . . . Triggered . | . . . . . . . . Machines | -11 -10 -9 -9 -8 -7 -6 -5 ---------- Run | Yrd Mat Mat Sto Mat Fac Fac Fac Machines Disabled 30 | . . 2 9 . 15 4 . Max in Single Turn 5 | . . 2 2 . 5 2 . Machines Repaired . | . . . . . . . . Machines Dismantled . | . . . . . . . . Machines Sabotaged . | . . . . . . . . Overloaded Fab Kills . | . . . . . . . . Hacking | -11 -10 -9 -9 -8 -7 -6 -5 --------- Run | Yrd Mat Mat Sto Mat Fac Fac Fac Machines Accessed 19 | . 3 1 6 2 3 2 2 Terminals 16 | . 2 1 5 2 2 2 2 Fabricators 1 | . . . . . 1 . . Repair Stations 1 | . . . 1 . . . . Recycling Units 1 | . 1 . . . . . . Scanalyzers . | . . . . . . . . Garrison Access . | . . . . . . . . Total Hacks 47 | . 12 4 14 3 6 3 5 Successful 25 | . 8 3 7 2 1 2 2 Failed 22 | . 4 1 7 1 5 1 3 Catastrophic 4 | . . . 1 . 2 . 1 Database Lockouts . | . . . . . . . . Manual 5 | . 2 1 . . 2 . . Terminals 41 | . 10 4 12 3 4 3 5 Fabricators 2 | . . . . . 2 . . Repair Stations 2 | . . . 2 . . . . Recycling Units 2 | . 2 . . . . . . Scanalyzers . | . . . . . . . . Garrison Access . | . . . . . . . . Terminal Hacks 19 | . 5 2 5 2 1 2 2 Record 13 | . 4 2 2 2 . 1 2 Robot Analysis 1 | . . . 1 . . . . Open Door 1 | . . . 1 . . . . Open DSF 2 | . . . . . 1 1 . Locate Traps 1 | . . . 1 . . . . Hauler Manifests 1 | . 1 . . . . . . Fabricator Hacks . | . . . . . . . . Repair Station Hacks 2 | . . . 2 . . . . Scan Component 1 | . . . 1 . . . . Repair 1 | . . . 1 . . . . Recycling Unit Hacks 1 | . 1 . . . . . . Retrieve Matter 1 | . 1 . . . . . . Scanalyzer . | . . . . . . . . Garrison Access Hacks . | . . . . . . . . Unauthorized Hacks 3 | . 2 1 . . . . . Terminals 2 | . 1 1 . . . . . Track 2 | . 1 1 . . . . . Fabricators . | . . . . . . . . Repair Stations . | . . . . . . . . Recycling Units 1 | . 1 . . . . . . Tunnel 1 | . 1 . . . . . . Scanalyzers . | . . . . . . . . Garrison Access . | . . . . . . . . Data Cores Recovered . | . . . . . . . . Used . | . . . . . . . . Hacking Detections 14 | . 1 1 5 2 2 1 2 Full Trace Events 4 | . 1 1 1 . 1 . . Feedback Events . | . . . . . . . . Feedback Blocked . | . . . . . . . . Robot Schematics Acquired . | . . . . . . . . Robots Built . | . . . . . . . . Authchips . | . . . . . . . . Time . | . . . . . . . . Total Robot Build Rating . | . . . . . . . . Part Schematics Acquired . | . . . . . . . . Parts Built . | . . . . . . . . Authchips . | . . . . . . . . Time . | . . . . . . . . Total Part Build Rating . | . . . . . . . . Parts Repaired 1 | . . . 1 . . . . Time 16 | . . . 16 . . . . Parts Recycled . | . . . . . . . . Recycled Matter . | . . . . . . . . Retrieved Matter . | . . . . . . . . Retrieved Components . | . . . . . . . . Parts Scanalyzed . | . . . . . . . . Part Schematics Acquired . | . . . . . . . . Parts Damaged . | . . . . . . . . Bothacking | -11 -10 -9 -9 -8 -7 -6 -5 ------------ Run | Yrd Mat Mat Sto Mat Fac Fac Fac Used RIF Installer . | . . . . . . . . Robots Hacked . | . . . . . . . . Non-combat . | . . . . . . . . Combat . | . . . . . . . . Robot Hacks Applied . | . . . . . . . . Relay Couplers Released . | . . . . . . . . Fabnet Peak Effective % . | . . . . . . . . Robots Rewired . | . . . . . . . . Allies Hacked . | . . . . . . . . Hacks Repelled . | . . . . . . . . Allies | -11 -10 -9 -9 -8 -7 -6 -5 -------- Run | Yrd Mat Mat Sto Mat Fac Fac Fac Total Allies 1 | . . . 1 . . . . Largest Group 1 | . . . 1 1 . . . Highest-Rated Group 100 | . . . 100 100 . . . Highest-Rated Ally 100 | . . . 100 100 . . . Total Orders 1 | . . . 1 . . . . FOLLOW 1 | . . . 1 . . . . Ally Attacks 12 | . . . 12 . . . . Total Damage 493 | . . . 493 . . . . Kills 7 | . . . 7 . . . . Allies Corrupted . | . . . . . . . . Allies Melted . | . . . . . . . . Intel | -11 -10 -9 -9 -8 -7 -6 -5 ------- Run | Yrd Mat Mat Sto Mat Fac Fac Fac Robot Analysis Total 1 | . . . 1 . . . . Derelict Logs Recovered . | . . . . . . . . Drone Launches 2 | . . . 2 . . . . Drone Recoveries 1 | . . . . 1 . . . Exploration | -11 -10 -9 -9 -8 -7 -6 -5 ------------- Run | Yrd Mat Mat Sto Mat Fac Fac Fac Turns Passed 5875 | 67 573 166 1225 416 2588 421 419 Spaces Moved 2683 | 39 276 69 646 164 1145 161 183 Core 23 | 18 5 . . . . . . Treads 1659 | 21 271 69 646 164 488 . . Legs 251 | . . . . . 2 66 183 Wheels 750 | . . . . . 655 95 . Hover . | . . . . . . . . Flight . | . . . . . . . . Fastest Speed 50 | 50 160 160 160 160 115 130 220 Average Speed 174 | 140 160 160 160 160 181 179 220 Slowest Speed 890 | 160 200 160 160 240 890 250 250 Overloaded Moves . | . . . . . . . . Propulsion Burnouts . | . . . . . . . . Robots Hopped . | . . . . . . . . Cave-ins Triggered . | . . . . . . . . Exploration Rate (%) 24 | 4 46 10 74 24 28 4 5 Regions Visited 7 Branch Regions 1 Pre-discovered Areas 1 | . 1 . . . . . . Known Exits Taken . | . . . . . . . . Unknown Exits Taken 7 | 1 1 1 1 1 1 1 . Scrap Searched . | . . . . . . . . Spaces Dug 36 | . . 1 2 . 33 . . Terrain Destroyed 419 | . . 43 112 18 90 156 . Melee 36 | . . 1 2 . 33 . . Projectile 7 | . . . . . 5 2 . AOE 376 | . . 42 110 18 52 154 . Terrain Rammed . | . . . . . . . . Walls Destroyed . | . . . . . . . . Machines Disabled . | . . . . . . . . Actions | -11 -10 -9 -9 -8 -7 -6 -5 --------- Run | Yrd Mat Mat Sto Mat Fac Fac Fac Total 3347 | 49 341 101 772 233 1421 231 199 Wait 56 | . . . . . 54 2 . Move 2676 | 38 275 68 645 163 1144 160 183 Hop . | . . . . . . . . Pick Up 94 | 5 17 5 23 5 25 3 11 Fast Attach 37 | 5 5 1 8 5 8 5 . Attach 51 | 1 2 4 5 8 17 10 4 Detach 6 | . . . 1 . 3 1 1 Swap 36 | . 2 3 13 5 8 5 . Drop 54 | . 7 3 21 4 15 4 . Fire 266 | . 32 16 34 43 100 41 . Melee 66 | . . 1 22 . 43 . . Ram . | . . . . . . . . Kick . | . . . . . . . . Crush 1 | . 1 . . . . . . Escape Stasis 4 | . . . . . 4 . . Rewire . | . . . . . . . . Trap . | . . . . . . . . Miscellaneous . | . . . . . . . . Route ------- -11/Scrapyard -10/Materials -9/Materials -9/Storage -8/Materials -7/Factory -6/Factory -5/Factory History --------- Turn | Location | Event 2 | -11/Scrapyard | Met Revision 17 14 | -11/Scrapyard | Discovered new exit (range 13) 68 | -11/Scrapyard | Entered Materials 306 | -10/Materials | Build established: Mutant 513 | -10/Materials | Discovered new exit (range 12) 641 | -10/Materials | Entered another Materials area 641 | -9/Materials | Evolved 2 slots: Propulsion x2 782 | -9/Materials | Discovered new exit (range 9) 807 | -9/Materials | Entered Storage 1139 | -9/Storage | Lost 3 parts (1n1u1w) 1249 | -9/Storage | Garrison activated, responded to threat 1628 | -9/Storage | Met 01-MTF 1891 | -9/Storage | Repaired Imp. Treads 1904 | -9/Storage | Discovered new exit (range 19) 2007 | -9/Storage | First assault squad dispatched 2032 | -9/Storage | Entered Materials 2032 | -8/Materials | Accompanied by 3 allies (01-MTF) 2032 | -8/Materials | Evolved 2 slots: Utility x1, Weapon x1 2037 | -8/Materials | 01-MTF left 2262 | -8/Materials | Lost 5 parts (1p3n1w) 2410 | -8/Materials | Discovered new exit (range 16) 2432 | -8/Materials | First assault squad dispatched 2448 | -8/Materials | Entered Factory 2448 | -7/Factory | Evolved 2 slots: Utility x1, Weapon x1 2749 | -7/Factory | Build established: Scavenger-Gunner 4229 | -7/Factory | Build established: Gunner 4823 | -7/Factory | Lost 4 parts (1p1u2w) 5006 | -7/Factory | Core integrity fell below 50% 5017 | -7/Factory | Discovered new exit (range 15) 5036 | -7/Factory | Entered another Factory area 5036 | -6/Factory | Evolved 2 slots: Power x1, Utility x1 5150 | -6/Factory | Lost 3 parts (1u2w) 5190 | -6/Factory | Discovered new exit (range 12) 5275 | -6/Factory | Lost 9 parts (3p2n1u3w) 5386 | -6/Factory | First assault squad dispatched 5393 | -6/Factory | Garrison activated, responded to threat 5438 | -6/Factory | Core integrity fell below 50% 5442 | -6/Factory | Lost 3 parts (2u1w) 5457 | -6/Factory | Entered another Factory area 5457 | -5/Factory | Evolved 2 slots: Propulsion x2 5769 | -5/Factory | Build established: Scavenger-Mutant 5876 | -5/Factory | Self-destructed Last Messages --------------- traps linking multiple [Flamer] devices, each one apparently equivalent to the plasma variant employed by the [Dragon] prototype. 05599_ Acquired Hvy. Machine Gun. 05606_ Acquired Fusion Compressor. 05614_ Acquired Great Maul. 05620_ Acquired Hvy. Pick. 05697_ Connecting with Terminal... >>Query(Epsilon Eridani System) Home to a spectral class K2 star 3.22 parsecs from the Sun, Epsilon Eridani is a young star system containing multiple rocky asteroid belts and a number of exoplanets potentially capable of supporting life. Destination of the [ISCS Eridanus]. 05840_ Penetrated by Slug. 05844_ Slug penetrates Wall. 05869_ Penetrated by Slug. 05872_ Slug penetrates Wall. 05876_ Penetrated by Slug. Map ----- +----------------------------------------------------+ | ?????????????????????????????????????????????????? | | ?????????????????????????????????????????????????? | | ?????????????????????????????????????????????????? | | ?????????????????????????????????????????????????? | | ?????????????????????????????????????????????????? | | ?????????????????????????????????????????????????? | | ?????????????????????????????????????????????????? | | ?????????????????????????????????????????????????? | | ?????????????????????????????????????????????????? | | ?????????????????????????????????????????????????? | | ?????????????????????????????????????????????????? | | ?????????????????????????????#???????????????????? | | ??????????????????????????????#??????????????????? | | ??????????????##############????#????????????????? | | ??????????????# #?????????????????????? | | ??????????????# #????????#????????????? | | ?????????????## #?#???????????????????? | | ??????????????# #?????????##??????????? | | ??????????????# = #????##???????????#???? | | ??????????????# #########?????????????? | | ????????????#?# # #???????????#?? | | ??????????????# # #??#??????????? | | ??????????????# # #????#????????? | | ??????????????# # #?????????????? | | ??????????????# = # #??????#??????? | | ??????????????# @ # ##############??? | | ???????#################h### # ##?? | | ??? # #??? | | ??? + #??? | | ??? # #?#? | | ???? # #??? | | ???? # #??? | | ?????#####+#####+########### # ##?? | | ??????????????????# # # #??? | | ??????????????????# # # #??? | | ????????????????? # """ + # #??# | | ??????????????????# """ # # #??? | | ??????????????????# """ # # #??? | | ??????????????????# # ##+#+############ | | ??????????????????# """ # #?#?#?### | | ??????????????????# """ # ######### | | ?????????????"????# """ # | | ??????????????????# # | | ??????????????????# """ # | | ??????????????????# """ # | | ?????????????????## """ # | | ??????????????????# #########+##+####### | | ??????????????????# """ #???#???# #?# | | ??????????????????# """ #???????# #?#### | | ?????????????#????# """ ##??????# #??#?? | +----------------------------------------------------+ Best States ------------- Heat Dissipation 40 Energy Generation 25 Energy Capacity 350 Matter Stores 300 Matter Capacity 450 Sight Range 22 Terrain Scan Range 14 Terrain Scan Density 10 Armor Coverage 225 Resistance: KI 20 Resistance: EX 25 Melee Speed Boost 20 Evasion (%) 40 Targeting Accuracy 6 Melee Accuracy 6 Recoil Reduction 4 Force Boost 20 Item Schematics ----------------- None Robot Schematics ------------------ None Fabricated ------------ Nothing Alien Tech Used ----------------- None Achievements -------------- Let's See Who's Tougher Maybe Next Time I'll Detach My Launcher Part-time Excavator Shopping List Significant Disruption Challenges ------------ None Game ------ Seed CompositeRelayEngine Manual? 0 Play Time 01:27:00 Cumulative 8.0 hours Start 2024.04.02 @ 18:14:28 End 2024.04.02 @ 19:42:34 Sessions 1 Manual Loads 0 Difficulty Rogue Special Mode None Game No. 8 Rogue 8 Adventurer 0 Explorer 0 Win Type - Total 0 Types 0/0/0/0/0/0/0/0/0 Lore% 10 Gallery% 14 Achievement% 11 Wizard Run 0 Options --------- Layout 2 ASCII 0 Keyboard 0 Movement Mouse Keybinds 0 Fullscreen 2 Font 32/Cog Map View 50x44 Zoom Use 0% Tactical HUD 1 Map Filters NONE Filters NONE Steam 1 RUN: fb04a331-f380-48a1-be49-879de91df9fd